bitfinex/quotes_ETHUSD_20260129
["timestamp","ask_amount","ask_price","bid_price","bid_amount"]
[1769729967681,0.88429839,2827.1,2826.5,0.002]
[1769729967987,1.42754919,2827.1,2826.5,0.002]
[1769729968155,0.11072415,2827.0,2826.5,0.002]
[1769729968352,0.11072415,2826.9,2826.5,0.002]
[1769729968581,0.11072415,2826.8,2826.5,0.002]
[1769729968787,1.06590777,2826.7,2825.9,0.002]
[1769729969062,0.11072415,2826.6,2826.0,0.88462268]
[1769729969271,0.11072415,2826.5,2826.0,0.88462268]
[1769729969495,0.11072415,2826.4,2826.0,0.88462268]
[1769729969673,0.11072415,2826.3,2826.0,1.42516337]
[1769729969875,0.88439324,2826.8,2826.1,0.97805974]
[1769729970076,1.83956578,2826.9,2826.1,0.97805974]
[1769729970597,0.59757869,2827.0,2826.1,0.97805974]
[1769729970909,0.88429948,2827.1,2826.3,0.97805974]
[1769729971678,0.88429948,2827.1,2826.9,0.002]
[1769729971879,0.88429948,2827.1,2826.3,1.86257927]
[1769729973000,0.88429948,2827.1,2826.4,0.97805974]
[1769729973672,0.88429948,2827.1,2826.5,0.002]
[1769729980211,0.88429948,2827.1,2826.6,0.002]
[1769729980393,1.08423764,2827.0,2826.5,0.002]
[1769729981071,0.001,2827.2,2826.5,0.95602583]
[1769729982509,0.001,2827.2,2826.6,0.95402583]
[1769729986078,0.001,2827.2,2826.7,0.88642353]
[1769729986408,0.001,2827.0,2826.7,1.84044936]
[1769729988932,0.001,2827.0,2826.8,0.95402583]
[1769729989086,0.001,2827.0,2826.9,0.18404494]
[1769729990792,0.001,2827.0,2826.7,0.002]
[1769729990993,0.001,2827.0,2826.7,0.88642255]
[1769729992724,0.001,2827.0,2826.7,1.84044838]
[1769729993722,0.001,2826.9,2826.7,1.84044838]
[1769729995524,0.001,2826.9,2826.6,3.37826631]
[1769729995706,0.001,2826.9,2826.7,0.8844]
[1769729999735,1.83319711,2827.8,2826.9,0.96871366]
[1769729999937,0.94911762,2827.7,2826.7,1.85311366]
[1769730001726,0.94911762,2827.5,2826.7,0.8844]
[1769730001932,1.13244358,2827.4,2826.7,0.8844]
[1769730002131,0.94911762,2827.4,2826.7,0.8844]
[1769730004752,0.94911762,2827.4,2826.6,4.34697997]
[1769730005162,0.94911762,2827.4,2826.4,0.88450129]
[1769730005163,1.83332721,2827.4,2826.4,0.88450129]
[1769730005329,1.83332721,2827.4,2825.8,0.002]
[1769730005330,0.94911762,2826.6,2825.8,0.002]
[1769730005523,0.72159227,2826.5,2825.8,0.88668369]
[1769730005732,0.94911762,2826.6,2825.8,0.88668369]
[1769730006042,0.94911762,2826.6,2825.9,0.88666738]
[1769730007056,0.94911762,2826.5,2825.9,0.002]
[1769730007958,0.94911762,2826.5,2825.8,0.002]
[1769730009250,0.94911762,2826.3,2825.8,0.002]
[1769730009562,1.48627677,2826.3,2825.8,0.002]
[1769730012786,0.53715915,2826.3,2825.8,0.002]
[1769730013984,0.001,2826.2,2825.8,0.002]
[1769730017068,0.001,2826.2,2825.8,0.97071366]
[1769730017688,0.001,2826.2,2825.8,1.85540171]
[1769730018205,0.001,2826.2,2825.9,0.96871366]
[1769730020504,0.001,2826.2,2825.9,1.85338744]
[1769730023603,0.001,2826.2,2825.9,0.96871366]
[1769730024716,0.001,2826.2,2825.9,1.85338693]
[1769730025411,0.001,2826.2,2825.9,0.96871366]
[1769730027713,0.001,2826.2,2825.9,1.85337184]
[1769730032747,0.001,2826.2,2825.8,0.002]
[1769730033099,0.001,2826.2,2825.8,0.88670123]
[1769730033848,0.001,2826.2,2825.8,1.84050634]
[1769730034038,0.001,2826.2,2825.9,1.83849054]
[1769730034233,0.001,2826.2,2825.9,0.95382557]
[1769730034408,0.001,2826.2,2825.9,1.83849737]
[1769730034608,0.001,2826.0,2825.9,1.83849737]
[1769730035034,0.001,2826.0,2825.9,0.95382557]
[1769730035203,0.001,2826.0,2825.8,0.88668592]
[1769730035204,0.001,2826.0,2825.8,0.002]
[1769730040913,0.001,2826.0,2825.8,1.99945341]
[1769730041413,0.001,2826.0,2825.8,2.88413277]
[1769730050731,0.001,2826.0,2825.8,0.88667936]
[1769730052763,0.001,2826.0,2825.8,0.002]
[1769730055078,0.001,2826.0,2825.7,3.53893032]
[1769730056468,0.91726661,2826.0,2825.6,0.003]
[1769730056627,0.001,2826.0,2825.6,0.003]
[1769730058162,0.001,2826.0,2825.9,0.002]
[1769730058455,0.001,2826.0,2825.6,0.003]
[1769730062540,0.001,2826.0,2825.4,1.88482804]
[1769730063477,0.001,2826.0,2825.4,1.0]
[1769730063682,0.001,2826.0,2825.3,0.002]
[1769730064176,0.001,2826.0,2825.3,0.88685976]
[1769730064388,0.001,2826.0,2825.3,1.88485976]
[1769730064560,0.001,2826.0,2825.1,3.54161873]
[1769730064762,0.001,2826.0,2825.2,0.88486234]
[1769730065088,0.001,2826.0,2825.2,1.84912433]
[1769730065375,0.91726661,2826.0,2825.2,1.84912433]
[1769730065585,0.91726661,2826.0,2825.3,0.88486149]
[1769730066279,1.80192417,2826.0,2825.3,0.88486149]
[1769730066484,0.18019242,2825.9,2825.3,0.88486149]
[1769730066699,0.18019242,2825.9,2825.4,0.96426199]
[1769730066856,0.88564875,2826.0,2825.4,0.96426199]
[1769730067056,0.88564875,2826.0,2825.3,0.88486149]
[1769730067983,0.88564875,2826.0,2825.2,1.84913123]
[1769730068558,0.002,2825.6,2825.2,1.84913123]
[1769730068762,0.002,2825.6,2825.3,0.53907803]
[1769730069454,0.002,2825.6,2825.3,1.42393752]
[1769730078904,0.002,2825.6,2825.3,0.88485949]
[1769730080604,0.002,2825.6,2825.2,1.84913051]
[1769730081211,0.002,2825.6,2825.1,0.002]
[1769730081501,0.002,2825.6,2824.7,0.88703396]
[1769730081502,0.91626661,2825.5,2824.7,0.88703396]
[1769730081707,6.27261332,2825.6,2824.8,0.003]
[1769730081708,1.6351546,2825.4,2824.8,0.003]
[1769730082405,1.6351546,2825.4,2824.7,0.88703396]
[1769730082406,0.91626661,2825.3,2824.7,0.88703396]
[1769730082575,0.91626661,2825.3,2824.7,0.89003396]
[1769730082774,0.91626661,2825.3,2824.7,0.88703396]
[1769730083201,0.91626661,2825.3,2824.7,0.005]
[1769730083410,0.25200041,2825.2,2824.7,0.005]
[1769730083888,1.16826702,2825.2,2824.7,0.002]
[1769730087605,0.93636539,2825.1,2824.5,0.002]
[1769730087813,0.93636539,2825.1,2824.5,0.005]
[1769730088282,0.93636539,2825.1,2824.5,0.89011207]
[1769730089194,1.49784856,2825.1,2824.5,0.89011207]
[1769730089614,1.13689386,2825.2,2824.5,0.89011207]
[1769730089814,2.07325925,2825.2,2824.7,0.001]
[1769730089983,2.07325925,2825.2,2824.5,0.005]
[1769730090908,2.07325925,2825.2,2824.5,0.89010808]
[1769730091117,0.93636539,2825.0,2824.5,0.002]
[1769730092303,1.67836539,2825.0,2824.5,0.002]
[1769730092503,1.67836539,2825.0,2824.7,0.002]
[1769730092710,1.67836539,2825.0,2824.5,0.002]
[1769730094894,0.742,2825.0,2824.5,0.002]
[1769730095093,0.21884186,2824.9,2824.5,0.002]
[1769730095392,0.21884186,2824.9,2824.6,0.93773762]
[1769730095590,1.30347368,2825.1,2824.6,0.93773762]
[1769730095797,0.742,2825.1,2824.6,0.93773762]
[1769730096622,1.87891175,2825.2,2824.7,0.003]
[1769730098321,1.87891175,2825.2,2824.6,0.93473762]
[1769730098827,0.002,2825.0,2824.6,0.93473762]
[1769730098996,0.002,2825.0,2824.5,0.88708865]
[1769730099397,0.002,2825.0,2824.5,0.002]
[1769730101122,0.002,2825.0,2824.5,0.93673762]
[1769730101328,0.002,2825.0,2824.6,0.93473762]
[1769730101508,0.002,2825.0,2824.6,1.81980927]
[1769730102716,0.002,2825.0,2824.7,0.93473762]
[1769730102918,0.94955393,2825.0,2824.5,0.002]
[1769730103110,1.13299919,2825.0,2824.5,0.002]
[1769730104631,1.13299919,2825.0,2824.7,0.002]
[1769730104819,0.001,2824.9,2824.5,0.002]
[1769730107438,0.94855393,2824.9,2824.5,0.002]
[1769730107661,0.001,2824.9,2824.5,0.002]
[1769730108639,0.18454803,2824.9,2824.5,0.002]
[1769730111146,0.94755393,2824.8,2824.5,0.002]
[1769730111325,0.94755393,2824.8,2824.4,0.001]
[1769730112545,0.18454803,2824.9,2824.4,0.93573762]
[1769730112738,0.001,2824.9,2824.4,0.93573762]
[1769730112947,0.001,2824.9,2824.4,1.82087474]
[1769730113134,0.001,2824.9,2824.4,0.88613712]
[1769730113665,0.002,2824.8,2824.4,0.88513712]
[1769730114726,0.002,2824.8,2824.2,4.4785085]
[1769730114727,0.002,2824.8,2824.2,3.92354841]
[1769730115347,0.002,2824.8,2824.3,0.88517508]
[1769730115656,0.95980303,2824.8,2824.3,0.88517508]
[1769730115878,0.95980303,2824.8,2824.2,0.001]
[1769730116176,1.68169539,2824.7,2824.2,0.001]
[1769730116962,0.95780303,2824.6,2824.4,0.002]
[1769730117361,0.95780303,2824.5,2824.2,0.001]
[1769730119744,1.84291613,2824.5,2823.9,0.002]
[1769730119949,0.18439161,2824.4,2823.9,0.002]
[1769730120579,1.14219464,2824.4,2823.9,0.002]
[1769730122185,1.84297811,2824.3,2823.9,0.002]
[1769730123348,0.95780303,2824.2,2823.9,0.002]
[1769730123543,0.95780303,2824.2,2823.3,0.002]
[1769730123787,0.95780303,2824.0,2823.4,0.88544085]
[1769730124084,0.95780303,2824.0,2823.5,0.88542413]
[1769730124243,2.02734594,2824.1,2823.3,0.002]
[1769730124443,1.16053762,2824.0,2823.3,0.002]
[1769730126372,2.04583511,2824.0,2823.3,0.002]
[1769730128790,2.04583511,2824.0,2823.6,0.001]
[1769730129483,0.95780303,2823.9,2823.6,0.001]
[1769730130392,0.95780303,2823.9,2823.3,0.002]
[1769730130689,0.95780303,2823.6,2823.3,0.002]
[1769730131391,1.62738429,2823.7,2823.3,0.002]
[1769730131695,2.58518732,2823.7,2823.3,0.002]
[1769730132989,0.20273459,2824.0,2823.4,0.98020772]
[1769730133176,1.62922456,2824.2,2823.4,0.98020772]
[1769730133484,1.62922456,2824.2,2823.5,0.002]
[1769730135699,1.62922456,2824.2,2823.5,0.88742588]
[1769730135873,1.62922456,2824.2,2823.6,0.002]
[1769730136073,2.24199844,2824.2,2823.6,0.002]
[1769730136286,2.24199844,2824.2,2823.7,0.002]
[1769730136501,2.24199844,2824.2,2823.6,0.002]
[1769730136883,1.49999844,2824.2,2823.7,0.002]
[1769730137079,2.24199844,2824.2,2823.6,0.002]
[1769730137606,1.35677388,2824.2,2823.7,0.002]
[1769730137802,1.35677388,2824.2,2823.6,0.002]
[1769730138171,2.24198373,2824.2,2823.7,0.002]
[1769730138372,1.35677388,2824.2,2823.6,0.002]
[1769730138774,1.35677388,2824.2,2823.7,0.002]
[1769730138974,1.35677388,2824.2,2823.6,0.003]
[1769730139694,1.35677388,2824.2,2823.7,0.002]
[1769730140092,1.35677388,2824.2,2823.8,0.002]
[1769730140302,0.744,2824.2,2823.7,0.002]
[1769730140708,0.002,2824.2,2823.8,0.002]
[1769730141007,0.002,2824.2,2823.7,0.002]
[1769730141376,0.001,2824.0,2823.8,0.002]
[1769730141578,0.001,2824.0,2823.7,0.002]
[1769730141911,0.001,2824.0,2823.7,0.88736317]
[1769730142108,0.001,2824.0,2823.8,0.002]
[1769730142879,0.001,2824.0,2823.7,0.88536317]
[1769730143120,0.001,2824.0,2823.8,0.002]
[1769730143275,0.001,2824.0,2823.8,0.97820772]
[1769730143476,0.001,2824.0,2823.9,0.002]
[1769730144016,0.001,2824.0,2823.8,0.97820772]
[1769730144399,0.001,2824.0,2823.8,1.86352918]
[1769730144927,0.001,2824.0,2823.8,2.0498821]
[1769730146915,0.001,2824.0,2823.9,0.91987495]
[1769730147323,0.001,2824.0,2823.8,1.07167438]
[1769730147829,0.001,2824.0,2823.8,1.99154933]
[1769730148044,0.742,2824.5,2823.8,1.99154933]
[1769730148198,1.64629871,2824.5,2823.8,1.80519641]
[1769730149693,1.64629871,2824.5,2823.7,3.54140668]
[1769730149932,1.64629871,2824.5,2823.9,0.91987495]
[1769730150108,0.742,2824.5,2823.9,0.91987495]
[1769730152536,0.742,2824.5,2823.9,1.80315575]
[1769730152925,8.04808271,2824.6,2823.9,1.80315575]
[1769730153125,0.001,2824.3,2823.9,1.80315575]
[1769730154644,0.001,2824.3,2824.0,0.9847064]
[1769730154827,0.001,2824.3,2824.0,0.54111891]
[1769730155325,0.001,2824.3,2823.9,0.8852808]
[1769730159342,0.001,2824.3,2823.9,1.8699872]
[1769730159841,0.001,2824.3,2823.9,0.8852808]
[1769730160731,0.001,2824.3,2823.8,3.54120188]
[1769730160931,0.002,2824.2,2823.8,3.54120188]
[1769730164843,0.001,2824.1,2823.8,3.54120188]
[1769730167132,0.001,2824.1,2823.8,0.88533182]
[1769730169147,0.001,2824.1,2823.7,3.54140444]
[1769730169538,0.001,2824.1,2823.7,4.52611084]
[1769730170248,0.001,2824.1,2823.7,5.42172652]
[1769730175830,0.001,2824.6,2823.8,0.91847257]
[1769730176231,0.001,2824.6,2823.9,0.92047257]
[1769730176633,0.92012652,2824.4,2823.7,0.88536231]
[1769730176863,1.64013744,2824.3,2823.7,0.88536231]
[1769730177065,0.92012652,2824.3,2823.7,0.88536231]
[1769730177467,0.92012652,2824.3,2823.6,0.003]
[1769730177658,1.80526142,2824.5,2823.6,0.92147257]
[1769730178258,0.92012652,2824.4,2823.6,0.92147257]
[1769730180372,0.92012652,2824.4,2823.7,0.88536317]
[1769730180572,1.10074925,2824.4,2823.7,0.88536317]
[1769730182951,1.98589941,2824.4,2823.6,0.003]
[1769730183155,0.92012652,2824.3,2823.6,0.003]
[1769730184471,0.001,2824.2,2823.6,0.003]
[1769730187039,0.92012652,2824.1,2823.6,0.003]
[1769730187245,0.92012652,2824.1,2823.5,0.002]
[1769730187575,0.1806306,2824.1,2823.5,0.92047257]
[1769730187877,0.002,2824.2,2823.5,0.92047257]
[1769730188651,0.002,2823.9,2823.6,0.88539453]
[1769730189372,0.002,2823.9,2823.8,0.002]
[1769730190374,1.62809682,2824.6,2823.8,0.002]
[1769730190590,2.24440557,2824.6,2823.8,0.002]
[1769730190871,2.24440557,2824.6,2823.8,0.88733182]
[1769730191065,3.16453209,2824.6,2823.8,0.88733182]
[1769730191263,0.92012652,2824.5,2823.8,0.002]
[1769730191471,0.92012652,2824.3,2823.8,0.002]
[1769730191658,0.92012652,2824.3,2823.7,0.88533866]
[1769730193777,0.92012652,2824.3,2823.5,3.54365986]
[1769730197583,0.92012652,2824.3,2823.5,4.46213243]
[1769730197801,0.92012652,2824.3,2823.5,5.35128291]
[1769730198580,0.001,2823.9,2823.5,5.35128291]
[1769730199384,0.92012652,2824.5,2823.6,0.91847257]
[1769730199589,0.001,2824.6,2823.6,0.91847257]
[1769730199783,0.001,2824.6,2823.8,0.91847257]
[1769730200689,0.001,2824.6,2823.9,0.88530047]
[1769730200854,0.001,2824.6,2823.9,1.80377304]
[1769730201688,0.001,2824.1,2823.9,1.80377304]
[1769730201860,0.001,2824.1,2823.9,2.69292352]
[1769730203184,0.001,2824.6,2824.0,0.91847257]
[1769730203792,0.001,2824.6,2824.1,0.91847257]
[1769730204488,0.001,2824.9,2824.1,0.91847257]
[1769730205072,0.001,2824.9,2824.3,0.91847257]
[1769730205386,0.001,2824.9,2824.4,1.09884047]
[1769730205590,0.001,2824.9,2824.4,0.91847257]
[1769730207192,0.001,2824.9,2824.5,0.8851124]
[1769730207383,0.001,2824.9,2824.6,0.97785086]
[1769730208060,0.001,2824.9,2824.6,0.97685086]
[1769730208381,0.001,2824.9,2824.7,0.18619633]
[1769730208688,0.001,2824.9,2824.6,0.97685086]
[1769730209096,0.001,2824.9,2824.5,0.8851124]
[1769730209473,0.001,2824.9,2824.5,1.86296326]
[1769730213303,0.001,2824.7,2824.5,1.86296326]
[1769730216505,0.001,2824.7,2824.5,1.86196326]
[1769730216708,0.001,2824.7,2824.6,0.54024129]
[1769730218298,0.001,2824.7,2824.6,1.42532236]
[1769730223923,0.001,2825.3,2824.6,2.38646264]
[1769730225024,0.001,2825.3,2824.7,0.96114028]
[1769730225224,0.001,2825.3,2824.9,0.96114028]
[1769730225730,0.001,2825.3,2825.0,1.84609603]
[1769730226503,0.001,2825.3,2825.0,0.88495575]
[1769730228633,0.6563953,2825.7,2825.1,0.96114028]
[1769730230328,0.6563953,2825.7,2825.0,0.88495575]
[1769730230528,0.6563953,2825.7,2825.1,0.63053472]
[1769730230742,0.6563953,2825.7,2825.2,0.8848931]
[1769730230926,1.57675728,2825.7,2825.2,0.8848931]
[1769730233914,0.001,2825.6,2825.2,0.8848931]
[1769730236836,0.001,2825.5,2825.2,0.8848931]
[1769730237136,0.001,2825.5,2825.3,0.60307423]
[1769730237637,0.001,2825.5,2825.4,0.88483046]
[1769730240836,0.001,2825.5,2825.3,0.88484687]
[1769730242440,0.001,2825.5,2825.0,0.002]
[1769730242866,0.001,2825.5,2825.0,0.97774202]
[1769730244508,0.001,2825.5,2825.1,0.88492442]
[1769730248559,0.001,2825.5,2825.1,1.42516083]
[1769730248768,0.001,2825.6,2825.2,0.97574202]
[1769730248927,0.001,2825.6,2825.3,0.002]
[1769730249258,0.001,2825.6,2825.3,0.88686178]
[1769730251557,0.001,2825.6,2825.3,0.002]
[1769730256064,0.001,2825.6,2825.1,2.4008815]
[1769730256376,0.001,2825.6,2825.2,1.47935104]
[1769730260467,0.001,2825.6,2825.2,1.47935551]
[1769730261154,0.001,2825.6,2825.3,0.002]
[1769730261351,0.001,2825.4,2825.3,0.002]
[1769730265403,0.001,2826.0,2825.3,0.97774202]
[1769730265586,0.001,2826.0,2825.3,1.16400646]
[1769730266372,0.001,2826.0,2825.3,1.15400646]
[1769730269070,0.001,2826.0,2825.4,0.88483046]
[1769730269280,0.001,2826.0,2825.5,0.20388369]
[1769730273083,1.14910719,2825.8,2825.3,0.18626444]
[1769730273240,1.14910719,2825.8,2825.0,0.88894179]
[1769730273446,0.001,2825.6,2825.0,0.88894179]
[1769730274794,0.001,2825.6,2825.0,2.04758256]
[1769730276579,0.001,2825.6,2825.0,0.88894179]
[1769730276783,0.001,2825.6,2825.1,0.54911146]
[1769730277169,0.001,2825.6,2825.0,0.88895039]
[1769730278453,0.001,2825.6,2825.0,0.004]
[1769730279358,1.22417476,2825.6,2825.0,0.004]
[1769730285094,1.22417476,2825.6,2825.2,0.002]
[1769730285502,0.001,2825.4,2825.2,0.002]
[1769730288175,0.001,2825.4,2825.0,0.004]
[1769730288370,0.001,2825.4,2825.1,1.15864077]
[1769730288612,0.001,2825.4,2825.0,1.16264077]
[1769730289104,1.22417476,2825.4,2825.0,0.004]
[1769730291308,1.43516934,2825.4,2825.0,0.004]
[1769730293799,1.43516934,2825.4,2825.0,0.002]
[1769730295577,1.25584613,2825.3,2824.3,0.88515553]
[1769730295905,1.25584613,2825.3,2824.3,0.44259391]
[1769730296315,1.25584613,2825.3,2824.1,2.18807179]
[1769730296473,1.25584613,2825.3,2824.1,3.25053582]
[1769730297074,0.88486178,2825.3,2824.1,3.25053582]
[1769730297279,1.25584613,2825.2,2824.1,3.25053582]
[1769730297504,1.25684613,2825.2,2824.1,3.25053582]
[1769730297691,1.25584613,2825.1,2825.0,0.001]
[1769730297881,1.25584613,2825.1,2824.1,3.24854393]
[1769730298782,1.25584613,2825.1,2824.2,1.30285656]
[1769730299488,1.47519968,2825.2,2824.1,0.88521523]
[1769730299489,1.25584613,2825.0,2824.1,0.88521523]
[1769730299788,1.52895285,2825.0,2824.1,2.18807179]
[1769730300120,1.25584613,2825.0,2824.1,2.18807179]
[1769730300424,1.25584613,2825.0,2824.2,1.30285656]
[1769730300919,0.59030418,2825.2,2824.3,1.30285656]
[1769730300920,1.84615031,2825.2,2824.3,1.30285656]
[1769730301923,1.25584613,2825.1,2824.3,1.30285656]
[1769730303627,0.001,2825.2,2824.4,1.30285656]
[1769730303916,0.001,2825.4,2824.7,1.30285656]
[1769730304097,0.001,2825.4,2825.0,1.30285656]
[1769730308226,0.001,2825.4,2824.9,0.002]
[1769730309343,0.001,2825.4,2825.2,0.002]
[1769730309510,0.001,2825.4,2824.9,0.002]
[1769730309829,0.001,2825.2,2824.9,0.002]
[1769730310000,0.001,2825.4,2825.0,0.002]
[1769730310207,0.001,2825.4,2825.0,1.30485656]
[1769730310410,0.001,2825.4,2825.0,0.002]
[1769730310623,1.25684613,2825.4,2825.0,0.002]
[1769730311822,0.001,2825.4,2825.0,0.002]
[1769730315932,0.001,2825.4,2825.0,1.52404373]
[1769730317028,0.001,2825.4,2825.1,0.88492442]
[1769730318207,0.001,2825.4,2825.0,1.10612107]
[1769730318540,0.001,2825.4,2825.0,1.10614083]
[1769730319038,0.001,2825.4,2825.1,0.4648077]
[1769730321156,0.001,2825.4,2825.1,1.34973176]
[1769730322565,0.001,2825.4,2825.2,0.002]
[1769730322868,1.25684613,2825.4,2825.0,0.002]
[1769730323158,1.25684613,2825.4,2824.9,0.002]
[1769730324254,0.001,2825.3,2824.7,0.002]
[1769730324552,0.001,2825.3,2824.7,1.89404683]
[1769730324736,0.001,2825.3,2824.7,0.59119027]
[1769730325055,0.001,2825.3,2824.8,1.30285656]
[1769730325219,0.001,2825.3,2824.9,0.88498707]
[1769730327427,0.001,2825.3,2824.8,5.02257766]
[1769730327628,0.001,2825.3,2824.9,0.65187863]
[1769730329733,0.001,2825.3,2825.0,0.88695575]
[1769730330260,0.001,2825.3,2825.1,0.002]
[1769730330559,0.001,2825.3,2825.1,1.48451186]
[1769730330855,0.001,2825.3,2825.1,0.002]
[1769730333329,0.001,2825.3,2824.8,0.88500467]
[1769730333529,1.48221776,2825.3,2824.9,0.88497368]
[1769730333927,1.48221776,2825.3,2824.9,0.002]
[1769730334140,1.48221776,2825.3,2824.7,0.88704089]
[1769730334343,1.53331484,2825.1,2824.7,0.00300203]
[1769730336749,1.53331484,2825.1,2824.7,0.00100203]
[1769730337152,1.77523699,2825.0,2824.7,0.00100203]
[1769730337576,1.53331484,2824.9,2824.7,0.00100203]
[1769730338937,0.24292215,2825.0,2824.4,0.002]
[1769730340488,1.77623699,2825.0,2824.4,0.002]
[1769730340766,1.53331484,2824.9,2824.4,0.002]
[1769730340966,1.71093854,2824.9,2824.4,0.002]
[1769730342732,0.1776237,2824.9,2824.4,0.002]
[1769730343040,0.001,2825.0,2824.4,0.002]
[1769730343244,0.001,2825.0,2824.5,0.002]
[1769730345159,1.53431484,2825.0,2824.5,0.002]
[1769730346150,1.53431484,2825.0,2824.7,0.002]
[1769730346673,0.001,2824.9,2824.7,0.002]
[1769730347261,1.53431484,2824.9,2824.4,0.002]
[1769730347472,1.53431484,2824.9,2824.4,0.004]
[1769730347473,1.53331484,2824.7,2824.4,0.004]
[1769730348650,1.53331484,2824.7,2824.4,0.001]
[1769730349154,1.53331484,2824.7,2824.0,0.88526912]
[1769730349354,1.53331484,2824.7,2824.1,0.002]
[1769730351882,1.77534238,2824.8,2824.1,0.002]
[1769730352061,1.79944819,2824.7,2824.2,0.002]
[1769730352385,1.79944819,2824.7,2824.1,0.002]
[1769730353081,0.26613335,2824.7,2824.0,2.36025896]
[1769730353286,1.53331484,2824.8,2824.1,0.002]
[1769730353947,0.001,2824.3,2824.1,0.002]
[1769730358470,0.001,2824.3,2824.2,0.002]
[1769730358665,0.001,2824.3,2824.1,0.002]
[1769730360277,0.001,2824.3,2824.2,0.002]
[1769730360591,0.001,2824.3,2824.1,0.002]
[1769730363797,1.64072302,2824.8,2824.0,0.8842752]
[1769730365993,1.64072302,2824.7,2824.0,0.8842752]
[1769730366359,0.001,2824.9,2823.9,1.29156758]
[1769730366360,1.64072302,2824.5,2823.9,1.29156758]
[1769730366562,1.64072302,2824.5,2823.9,0.40627857]
[1769730366793,1.64072302,2824.3,2823.8,0.002]
[1769730367698,1.64072302,2824.3,2823.8,0.88731302]
[1769730368073,0.25258041,2824.4,2823.9,0.88529842]
[1769730368402,1.64072302,2824.5,2823.8,0.002]
[1769730368770,1.64072302,2824.8,2823.8,1.64686676]
[1769730370704,1.64072302,2824.6,2823.9,0.88530047]
[1769730371070,0.001,2824.1,2823.8,0.88731294]
[1769730372170,0.001,2824.1,2823.8,0.002]
[1769730372371,1.64172302,2824.1,2823.6,0.88737745]
[1769730372572,1.64172302,2824.1,2823.6,0.002]
[1769730373103,1.89451476,2824.1,2823.6,0.002]
[1769730378677,0.25379174,2824.1,2823.6,0.002]
[1769730378900,0.001,2824.1,2823.6,0.002]
[1769730379310,0.001,2824.1,2823.6,1.64686676]
[1769730379809,0.001,2824.1,2823.6,0.88737339]
[1769730380879,0.001,2824.1,2823.6,0.002]
[1769730382277,0.001,2824.1,2823.6,1.64686676]
[1769730382711,0.001,2824.1,2823.8,0.002]
[1769730384314,0.002,2824.1,2823.8,0.002]
[1769730390215,1.77721132,2824.1,2823.5,0.004]
[1769730390535,1.95493245,2824.1,2823.5,0.004]
[1769730391986,1.77521132,2824.0,2823.5,0.004]
[1769730394524,7.94894912,2823.8,2823.2,0.88352966]
[1769730394719,1.67032935,2823.8,2823.2,0.88352966]
[1769730395436,1.67032935,2823.8,2823.1,0.8875287]
[1769730397142,1.67032935,2823.8,2823.1,0.002]
[1769730397438,0.25566477,2823.7,2823.1,0.002]
[1769730398244,1.92599412,2823.7,2823.1,0.002]
[1769730399138,0.001,2823.5,2823.1,0.002]
[1769730401569,1.67132935,2823.5,2823.1,0.002]
[1769730404726,0.001,2823.5,2823.1,0.002]
[1769730405772,0.001,2823.5,2823.1,1.66226902]
[1769730407038,0.001,2823.5,2823.2,0.88551997]
[1769730409164,0.001,2823.5,2823.1,2.54779853]
[1769730409461,0.001,2823.5,2823.1,0.002]
[1769730409866,0.001,2823.5,2823.1,0.8875509]
[1769730411661,0.001,2823.5,2823.1,0.002]
[1769730413081,0.001,2823.5,2823.1,1.66226902]
[1769730413298,0.001,2823.5,2823.1,2.27188646]
[1769730414096,0.001,2823.5,2823.2,0.88551997]
[1769730418522,0.001,2823.3,2823.2,0.88551997]
[1769730421989,0.001,2823.3,2823.1,1.49714479]
[1769730424335,0.001,2823.3,2823.1,2.58146721]
[1769730424512,0.001,2823.3,2823.1,0.88752735]
[1769730425311,0.001,2823.3,2823.1,0.002]
[1769730428524,0.001,2823.3,2823.0,0.002]
[1769730429343,1.77465293,2823.3,2822.9,0.004]
[1769730429546,1.95111822,2823.2,2822.9,0.004]
[1769730432216,1.95111822,2823.2,2822.8,0.002]
[1769730433949,0.17746529,2823.2,2822.8,0.002]
[1769730434715,0.001,2823.3,2822.8,0.002]
[1769730436626,0.001,2823.3,2822.8,0.88764545]
[1769730439121,0.001,2823.3,2822.8,0.002]
[1769730439743,1.77465293,2823.3,2822.8,0.002]
[1769730440747,1.77465293,2823.3,2822.9,0.001]
[1769730440954,2.04076106,2823.3,2822.9,0.001]
[1769730442050,2.04076106,2823.3,2823.0,0.002]
[1769730442251,2.04076106,2823.3,2822.9,0.001]
[1769730443238,2.04176106,2823.3,2822.8,0.002]
[1769730448168,2.04176106,2823.3,2822.7,0.003]
[1769730448344,2.06432021,2823.2,2822.7,0.003]
[1769730449545,0.29272339,2823.2,2822.7,0.003]
[1769730450763,2.06432021,2823.2,2822.7,0.003]
[1769730452268,1.77159682,2823.1,2822.5,0.002]
[1769730452937,1.77159682,2823.0,2822.5,0.002]
[1769730453131,0.26571499,2822.9,2822.5,0.002]
[1769730454272,0.26571499,2822.9,2822.6,0.002]
[1769730455749,1.98178992,2822.9,2822.6,0.002]
[1769730457563,0.26571499,2822.9,2822.6,0.002]
[1769730458071,0.743,2823.1,2822.6,0.002]
[1769730458282,0.002,2823.0,2822.6,0.002]
[1769730458490,0.001,2823.3,2822.6,0.002]
[1769730458688,0.001,2823.6,2822.8,1.70294111]
[1769730458982,0.002,2823.6,2822.8,1.70294111]
[1769730459985,0.002,2823.6,2823.0,1.70294111]
[1769730460193,0.002,2823.6,2823.1,1.96179663]